Cogmind - Beta 17 @@@ ROGUE MODE // 2026.07.04 @ 19:07:08 Player: beans Result: Core melted Performance ------------- Evolutions (4) 2000 Regions Visited (11) 2200 Robots Destroyed (106) 530 Value Destroyed (3511) 3511 Prototype IDs (2) 40 Alien Tech Used (0) 0 Bonus (1487) 1487 TOTAL SCORE: 9768 Bonus ------- High Alert Combat Kills 73 Follower Combat Kills 508 Entered DSFs 1000 Friendly Fire -94 Cogmind --------- Core Integrity 0/850 Matter 31/300 Energy 194/430 System Corruption 25% Temperature Critical (3173) Movement Core (1150) Ox22 Location -6/DSF Parts ------- > --- POWER (2) -------- Improved Ion Engine Improved Ion Engine > --- PROPULSION (3) --- Heavy Treads > --- UTILITY (4) ------ Advanced Heat Sink > --- WEAPON (6) ------- Disruptor Cannon Disruptor Cannon Disruptor Cannon Disruptor Cannon Disruptor Cannon Disruptor Cannon > --- INVENTORY (5) ---- Advanced Recoil Stabilizer Advanced Recoil Stabilizer Improved Kinecellerator Improved Weapon Cycler Spear Peak State ------------ > --- POWER ------------ Fission Core Antimatter Reactor > --- PROPULSION ------- Medium Treads Heavy Treads > --- UTILITY ---------- Improved Cooling System Advanced Recoil Stabilizer Improved Kinecellerator Improved Propulsion Shielding > --- WEAPON ----------- Heavy Battle Rifle Heavy Battle Rifle Heavy Battle Rifle Heavy Battle Rifle Bore Cannon Bore Cannon > --- INVENTORY -------- Backup Plating III Gauss Rifle Spear [Rating: 74] Favorites ----------- Power Backup Power III Engine Backup Power III Power Core Fission Core Reactor Antimatter Reactor Propulsion Medium Treads Treads Medium Treads Leg Aluminum Leg Hover Unit Backup Propulsion III Utility Improved Heat Sink Device Improved Heat Sink Storage Small Storage Unit Processor Advanced Targeting Computer Protection Backup Plating III Weapon Heavy Battle Rifle Energy Gun Particle Gun Energy Cannon Disruptor Cannon Ballistic Gun Heavy Battle Rifle Ballistic Cannon Heavy Flak Cannon Launcher Rocket Launcher Piercing Weapon Spear Build | -11 -10 -9 -8 -7 -7 -7 -7 -6 -6 -6 -6 ------- Run | Yrd Mat Mat Mat Fac Was Fac DSF Fac Was Fac DSF Slots Evolved 8 | . . 2 2 2 . . . 2 . . . Power 1 | . . . . 1 . . . . . . . Propulsion 1 | . . . 1 . . . . . . . . Utility 2 | . . 2 . . . . . . . . . Weapon 4 | . . . 1 1 . . . 2 . . . Parts Attached 84 | 5 . 11 34 5 10 . 1 2 . . 16 Power 10 | 1 . 1 3 1 1 . 1 . . . 2 Engine 7 | 1 . 1 3 . . . . . . . 2 Core 2 | . . . . 1 . . 1 . . . . Reactor 1 | . . . . . 1 . . . . . . Propulsion 15 | 2 . 2 8 1 1 . . . . . 1 Treads 8 | 2 . . 3 1 1 . . . . . 1 Leg 7 | . . 2 5 . . . . . . . . Wheel . | . . . . . . . . . . . . Hover . | . . . . . . . . . . . . Flight . | . . . . . . . . . . . . Utility 20 | . . 5 8 2 4 . . . . . 1 Device 11 | . . 2 4 1 3 . . . . . 1 Storage 1 | . . . 1 . . . . . . . . Processor 3 | . . 1 1 1 . . . . . . . Hackware . | . . . . . . . . . . . . Protection 5 | . . 2 2 . 1 . . . . . . Artifact . | . . . . . . . . . . . . Weapon 39 | 2 . 3 15 1 4 . . 2 . . 12 Energy Gun 4 | . . . 4 . . . . . . . . Energy Cannon 8 | . . . . . . . . . . . 8 Ballistic Gun 17 | 2 . 3 7 1 4 . . . . . . Ballistic Cannon 6 | . . . . . . . . 2 . . 4 Launcher 1 | . . . 1 . . . . . . . . Special Weapon . | . . . . . . . . . . . . Impact Weapon . | . . . . . . . . . . . . Slashing Weapon . | . . . . . . . . . . . . Piercing Weapon 3 | . . . 3 . . . . . . . . Special Melee Weapon . | . . . . . . . . . . . . Unidentified Prototypes 2 | . . 1 1 . . . . . . . . Parts Lost 45 | . . 5 20 1 6 . . . 5 . 8 Power 4 | . . 1 1 . . . . . 1 . 1 Propulsion 11 | . . 2 6 1 1 . . . . . 1 Utility 13 | . . 1 7 . 1 . . . . . 4 Weapon 17 | . . 1 6 . 4 . . . 4 . 2 Highest Loss Streak 10 | . . 4 10 1 5 . . . 3 . 6 To Critical Strikes . | . . . . . . . . . . . . Average Backups 4 | . . 3 4 6 4 5 5 3 3 4 3 Power . | . . . . . . . . . . . . Propulsion . | . . . . . . . . . . 1 . Utility . | . . . . . . 1 1 1 1 2 1 Weapon 2 | . . 1 3 6 3 4 4 2 1 1 1 Tool/Special . | . . . . . . . . . . . . Unused Backups 7 | . . . 2 . . . . . . . 5 Power . | . . . . . . . . . . . . Propulsion 2 | . . . 2 . . . . . . . . Utility 5 | . . . . . . . . . . . 5 Weapon . | . . . . . . . . . . . . Tool/Special . | . . . . . . . . . . . . Average Slot Usage (%) 73 | . 71 62 83 80 74 92 92 92 57 26 49 Engine 7 | . 14 9 8 7 10 7 3 . . . 4 Core 1 | . . . . . 1 . 3 6 5 . . Reactor 1 | . . . . . 1 7 7 6 6 6 2 Treads 11 | . 28 13 10 18 9 15 15 13 10 6 5 Leg 4 | . . 7 11 . . . . . . . . Device 9 | . . 5 11 4 8 23 23 20 12 6 7 Storage 1 | . . . 4 7 1 . . . . . . Processor 2 | . . 1 5 12 3 . . . . . . Protection 6 | . . 2 8 . 8 7 7 6 6 6 1 Energy Gun 1 | . . . 3 . 2 . . . . . . Energy Cannon 1 | . . . . . . . . . . . 16 Ballistic Gun 17 | . 28 22 12 25 22 30 30 26 10 . . Ballistic Cannon 1 | . . . . . . . . 12 3 . 9 Piercing Weapon 1 | . . . 6 2 . . . . . . . Peak Build Rating 74 | 5 5 18 41 42 63 63 65 74 74 28 59 Average Rating 34 | 3 5 7 26 38 41 63 64 73 48 28 46 On Entrance 35 | . 5 5 18 31 41 63 63 65 74 28 28 Avg Prop Armor Cover (%) 10 | . . 10 . . . . . . . . . Naked Turns 63 | . . . . . 63 . . . . . . Heaviest Build 70 | 8 8 25 46 36 44 44 52 70 70 20 69 Greatest Support 98 | 40 40 40 84 76 98 98 98 98 98 70 70 Greatest Overweight (x) 22 | . . 1 1 . 2 . . . . . 22 Average Overweight (x) . | . . . . . . . . . . . . Largest Inventory Capacity 8 | 5 5 5 8 8 8 5 5 5 5 5 5 Average Capacity 5 | 5 5 5 6 8 5 5 5 5 5 5 5 Most Carried 8 | 4 . 5 8 8 8 5 5 5 5 5 5 Average Carried 4 | . . 3 4 6 4 5 5 3 3 5 4 Final Capacity 8 | 5 5 5 8 8 5 5 5 5 5 5 5 Final Carried 8 | . . 5 8 7 5 5 5 3 5 5 5 Class Distribution -------------------- 30% | Mutant 16% | Scavenger-Mutant 15% | Scavenger-Tank 11% | Derelict-Tank 9% | Scavenger-Gunner 6% | Derelict-Executioner 5% | Gunner Dominant Class ---------------- Mutant | -10/Materials Mutant | -9/Materials Mutant | -8/Materials Scavenger-Gunner | -7/Factory Derelict-Tank | -7/Waste Scavenger-Tank | -7/Factory Scavenger-Tank | -7/DSF Derelict-Executioner | -6/Factory Scavenger-Mutant | -6/Waste Scavenger-Mutant | -6/Factory Gunner | -6/DSF Resources | -11 -10 -9 -8 -7 -7 -7 -7 -6 -6 -6 -6 ----------- Run | Yrd Mat Mat Mat Fac Was Fac DSF Fac Was Fac DSF Matter Collected 3610 | 201 121 465 953 290 462 . 68 153 293 . 604 Remotely . | . . . . . . . . . . . . Salvage Created 5319 | . 259 747 2217 341 273 . 99 317 516 . 550 Parts 221 | . 15 51 109 12 . . 6 10 6 . 12 Haulers Intercepted 5 | . . 1 3 . . . . . . . 1 Recyclers Shooed 4 | . 2 1 1 . . . . . . . . Parts Field Recycled . | . . . . . . . . . . . . Retrieved Matter . | . . . . . . . . . . . . Parts Self-Destructed . | . . . . . . . . . . . . Prevented . | . . . . . . . . . . . . Parts Restored . | . . . . . . . . . . . . Kills | -11 -10 -9 -8 -7 -7 -7 -7 -6 -6 -6 -6 ------- Run | Yrd Mat Mat Mat Fac Was Fac DSF Fac Was Fac DSF Combat Hostiles Destroyed 78 | . 3 15 38 6 1 . 2 2 2 . 9 Melee 11 | . . . 11 . . . . . . . . Guns 51 | . 3 15 22 6 1 . 2 . 2 . . Cannons 11 | . . . . . . . . 2 . . 9 AOE 5 | . . . 5 . . . . . . . . Classes Destroyed 15 | . 4 5 3 . 1 . 1 1 . . . Worker 6 | . . 4 2 . . . . . . . . Builder 6 | . . 3 3 . . . . . . . . Tunneler 2 | . 1 . 1 . . . . . . . . Hauler 5 | . . 1 3 . . . . . . . 1 Recycler 6 | . 1 1 2 . . . . 2 . . . Watcher 3 | . 1 . 2 . . . . . . . . Swarmer 11 | . . 7 4 . . . . . . . . Grunt 42 | . 3 6 24 3 . . . . . . 6 Brawler 3 | . . . 2 . . . . 1 . . . Duelist 1 | . . . 1 . . . . . . . . Sentry 12 | . . 2 6 3 . . 1 . . . . Specialist 3 | . . . . . . . 1 . . . 2 Heavy 2 | . . . 1 . . . . . . . 1 Behemoth 1 | . . . . . . . . 1 . . . Compactor 3 | . . . . . 1 . . . 2 . . Best Kill Streak 13 | . 6 9 13 2 1 . 1 2 1 . 6 Combat Bots Only 9 | . 3 5 9 2 1 . 1 1 1 . 6 Max Kills in Single Turn 3 | . 1 1 3 1 1 . 1 2 1 . 1 Gunslinging . | . . . . . . . . . . . . Exploded 2 | . . . 2 . . . . . . . . Melee 1 | . . . 1 . . . . . . . . Uniques/NPCs Destroyed . | . . . . . . . . . . . . Combat | -11 -10 -9 -8 -7 -7 -7 -7 -6 -6 -6 -6 -------- Run | Yrd Mat Mat Mat Fac Was Fac DSF Fac Was Fac DSF Hostile Shots Fired 563 | . 7 95 259 69 6 . 9 11 8 . 99 Missed 169 | . 2 30 76 30 . . 2 1 . . 28 Hits 394 | . 5 65 183 39 6 . 7 10 8 . 71 Melee 17 | . . . 3 . 6 . . . 8 . . Projectile 377 | . 5 65 180 39 . . 7 10 . . 71 Critical Strikes 30 | . 1 2 13 . 2 . . . 7 . 5 Part Disruptions 3 | . . 1 . . . . . . . . 2 Damage Taken 7320 | . 103 734 3118 318 244 . 191 237 330 . 2045 Core 1822 | . 40 118 531 50 163 . . . 163 . 757 Absorbed by Shields . | . . . . . . . . . . . . Redirected to Shielding 164 | . . . 3 . . . 49 44 . . 68 Ignored by Resistances 18 | . . . 18 . . . . . . . . Regen/Repaired (Parts) 268 | . . . . . 112 . 35 42 79 . . Core Remaining (%) 65 | 100 84 70 3 . . . 69 . . . . Volleys Fired 310 | . 29 78 114 14 19 . 8 6 15 . 27 Largest 6 | . 2 2 3 4 4 . 4 6 6 . 4 Hottest 228 | . 40 43 195 112 112 . 132 228 228 . 176 Shots Fired 795 | . 58 150 283 45 55 . 32 36 51 . 85 Gun 681 | . 58 150 276 45 55 . 32 24 41 . . Cannon 107 | . . . . . . . . 12 10 . 85 Launcher 7 | . . . 7 . . . . . . . . Special . | . . . . . . . . . . . . Kinetic 747 | . 58 150 235 45 55 . 32 36 51 . 85 Thermal 41 | . . . 41 . . . . . . . . Explosive 7 | . . . 7 . . . . . . . . Electromagnetic . | . . . . . . . . . . . . Robot Hit Streak 19 | . 6 12 16 19 19 . 5 10 11 . 7 Robot Miss Streak 7 | . 2 4 5 4 2 . 3 2 4 . 7 Penetration Max 1 | . . . 1 1 . . . 1 . . . Secondary Targets 10 | . 1 1 6 1 . . . . 1 . . Max Gunslinging Chain 1 | . 1 1 1 1 . . . . 1 . . Shots Hit Robots 576 | . 33 101 218 29 50 . 15 19 37 . 74 Core Hits 303 | . 14 42 104 17 16 . 6 11 8 . 85 Critical Kills 9 | . . . 7 . . . . 2 . . . Critical Parts Destroyed 6 | . . 3 2 . . . . 1 . . . Critical Strikes 31 | . . 3 16 1 3 . . 5 3 . . Burn 2 | . . . 2 . . . . . . . . Destroy 23 | . . 3 9 1 2 . . 5 3 . . Impale 6 | . . . 5 . 1 . . . . . . Melee Attacks 47 | . . . 45 . 2 . . . . . . Impact . | . . . . . . . . . . . . Slashing . | . . . . . . . . . . . . Piercing 47 | . . . 45 . 2 . . . . . . Sneak Attacks 1 | . . . 1 . . . . . . . . Combat Hostiles . | . . . . . . . . . . . . Follow-up Attacks 7 | . . . 7 . . . . . . . . Damage Inflicted 11434 | . 335 1123 4056 618 1111 . 379 641 1041 . 2130 Guns 7406 | . 335 1123 2595 618 1087 . 379 394 875 . . Cannons 2543 | . . . . . . . . 247 166 . 2130 Explosions 568 | . . . 568 . . . . . . . . Melee 917 | . . . 893 . 24 . . . . . . Ramming . | . . . . . . . . . . . . Kinetic 9501 | . 335 1123 2147 618 1087 . 379 641 1041 . 2130 Thermal 448 | . . . 448 . . . . . . . . Explosive 568 | . . . 568 . . . . . . . . Electromagnetic . | . . . . . . . . . . . . Impact . | . . . . . . . . . . . . Slashing . | . . . . . . . . . . . . Piercing 917 | . . . 893 . 24 . . . . . . Highest Corruption 25 | . . . . . . . . . 25 25 25 Average Corruption 21 | . . . . . . . . . 15 25 25 Corruption Purged . | . . . . . . . . . . . . Corruption Blocked . | . . . . . . . . . . . . Effects 40 | . . . . . . . . . 8 3 29 Message Errors 7 | . . . . . . . . . 2 1 4 Matter Fused 10 | . . . . . . . . . 1 1 8 Heat Flow Errors 4 | . . . . . . . . . 1 . 3 Energy Discharges 4 | . . . . . . . . . 1 . 3 Parts Rejected 2 | . . . . . . . . . 1 . 1 Data Loss (minor) 3 | . . . . . . . . . . . 3 Data Loss (major) 1 | . . . . . . . . . 1 . . Misfires 1 | . . . . . . . . . . . 1 Alerts 2 | . . . . . . . . . . 1 1 Misdirections 2 | . . . . . . . . . . . 2 Weapon Failures 4 | . . . . . . . . . 1 . 3 Overload Shots . | . . . . . . . . . . . . Overflow Damage 47 | . . . 47 . . . . . . . . Projectiles . | . . . . . . . . . . . . Explosions . | . . . . . . . . . . . . Melee 47 | . . . 47 . . . . . . . . Knockbacks 38 | . . . . . . . . . 1 . 37 Impact . | . . . . . . . . . . . . Kinetic 36 | . . . . . . . . . 1 . 35 Secondary 2 | . . . . . . . . . . . 2 Self-Inflicted Damage . | . . . . . . . . . . . . Shots . | . . . . . . . . . . . . Rammed . | . . . . . . . . . . . . Targets Rammed . | . . . . . . . . . . . . Kicked . | . . . . . . . . . . . . Crushed . | . . . . . . . . . . . . Highest Temperature 3173 | . 27 26 498 36 18 . 26 216 172 . 3173 Average Temperature 314 | . 14 6 186 14 9 . 8 82 61 . 721 Received Heat Transfer 2522 | . 63 294 1422 108 . . 9 33 9 . 584 Effects 40 | . . . 4 . . . . . . . 36 Shutdowns 4 | . . . 1 . . . . . . . 3 Energy Bleed 6 | . . . 1 . . . . . . . 5 Interference 6 | . . . . . . . . . . . 6 Matter Decay 5 | . . . 1 . . . . . . . 4 Short Circuit 5 | . . . 1 . . . . . . . 4 Damage (minor) 2 | . . . . . . . . . . . 2 Damage (major) 7 | . . . . . . . . . . . 7 Damage (core) 5 | . . . . . . . . . . . 5 Siege Activations . | . . . . . . . . . . . . Martial Activations . | . . . . . . . . . . . . Shielding Activations . | . . . . . . . . . . . . Robots Disrupted . | . . . . . . . . . . . . Combat Hostiles . | . . . . . . . . . . . . Robots Corrupted . | . . . . . . . . . . . . Combat Hostiles . | . . . . . . . . . . . . Parts Fried . | . . . . . . . . . . . . Impact Corruptions . | . . . . . . . . . . . . Robots Melted . | . . . . . . . . . . . . Combat Hostiles . | . . . . . . . . . . . . Parts Melted 4 | . . . 4 . . . . . . . . Heat Transferred 1184 | . . . 1184 . . . . . . . . Parts Sabotaged . | . . . . . . . . . . . . Parts Stolen . | . . . . . . . . . . . . Parts Stripped . | . . . . . . . . . . . . Power Chain Reactions . | . . . . . . . . . . . . Alert | -11 -10 -9 -8 -7 -7 -7 -7 -6 -6 -6 -6 ------- Run | Yrd Mat Mat Mat Fac Was Fac DSF Fac Was Fac DSF Maximum Alert Level 2 | . . . 2 1 . . 2 1 . . . Low Security (%) 81 | 100 100 100 74 . 100 100 32 1 100 100 100 Level 1 15 | . . . 18 100 . . 51 98 . . . Level 2 2 | . . . 6 . . . 16 . . . . Level 3 . | . . . . . . . . . . . . Level 4 . | . . . . . . . . . . . . Level 5 . | . . . . . . . . . . . . High Security . | . . . . . . . . . . . . Max Security . | . . . . . . . . . . . . Sterilizations 2 | . . . . . . . 1 . . . 1 Peak Influence 507 | . 67 171 507 334 116 . 433 325 100 . 160 Initial 226 | . . 7 67 224 116 . . 226 100 . . Average 100 | . 31 52 175 257 8 . 273 265 23 . 98 Influence Increases 2815 | . 87 455 1104 200 34 . 453 250 2 . 230 Destroy 0b10 Robot/C 1700 | . 60 300 760 120 . . 180 100 . . 180 Destroy 0b10 Robot/NC 175 | . 15 45 65 . . . 20 10 . . 20 Destroy Leader 394 | . 12 62 200 50 . . 20 20 . . 30 Allied During Kill 308 | . . . . . . . 211 97 . . . Disable Machine 45 | . . . . 30 . . . 15 . . . Destroy Structure 118 | . . 3 49 . 34 . 22 8 2 . . Lose Combat Pursuer 75 | . . 45 30 . . . . . . . . Influence Decreases 2655 | . 70 312 769 361 368 . 20 397 288 . 70 Entered New Map 985 | . . 10 93 271 218 . . 207 186 . . Time Decay 1190 | . 70 252 476 80 130 . . 130 52 . . Lost Part 360 | . . 50 200 10 . . . . 30 . 70 Lost Ally 120 | . . . . . 20 . 20 60 20 . . Squads Dispatched 17 | . . 2 6 5 . . 1 . . 1 2 Investigation 2 | . . . . 1 . . . . . 1 . Extermination . | . . . . . . . . . . . . Reinforcement 7 | . . 2 2 . . . 1 . . . 2 Assault . | . . . . . . . . . . . . Garrison 8 | . . . 4 4 . . . . . . . Intercept . | . . . . . . . . . . . . Searches Triggered . | . . . . . . . . . . . . Construction Impeded . | . . . . . . . . . . . . Haulers Reinforced . | . . . . . . . . . . . . Active Scanning Responses . | . . . . . . . . . . . . Cargo Convoy Interrupts . | . . . . . . . . . . . . Stealth | -11 -10 -9 -8 -7 -7 -7 -7 -6 -6 -6 -6 --------- Run | Yrd Mat Mat Mat Fac Was Fac DSF Fac Was Fac DSF Distress Signals 5 | . 2 . 3 . . . . . . . . Communications Jammed . | . . . . . . . . . . . . Distress Signals . | . . . . . . . . . . . . Times Spotted 117 | . 5 22 51 7 5 . 6 5 6 . 10 Peak Tracking Total 7 | . 3 6 7 2 4 . 2 4 3 . 5 Tactical Retreats 4 | . . 3 1 . . . . . . . . Traps | -11 -10 -9 -8 -7 -7 -7 -7 -6 -6 -6 -6 ------- Run | Yrd Mat Mat Mat Fac Was Fac DSF Fac Was Fac DSF Traps Triggered 6 | . 1 1 . 1 . . 1 1 . . 1 Indirectly . | . . . . . . . . . . . . Trap Hack Attempts . | . . . . . . . . . . . . Triggered . | . . . . . . . . . . . . Disarmed . | . . . . . . . . . . . . Reprogrammed . | . . . . . . . . . . . . Reused . | . . . . . . . . . . . . Traps Extracted . | . . . . . . . . . . . . Installed . | . . . . . . . . . . . . Triggered . | . . . . . . . . . . . . Machines | -11 -10 -9 -8 -7 -7 -7 -7 -6 -6 -6 -6 ---------- Run | Yrd Mat Mat Mat Fac Was Fac DSF Fac Was Fac DSF Machines Disabled 3 | . . . . 2 . . . 1 . . . Max in Single Turn 2 | . . . . 2 . . . 1 . . . Machines Repaired . | . . . . . . . . . . . . Machines Dismantled . | . . . . . . . . . . . . Machines Sabotaged . | . . . . . . . . . . . . Overloaded Fab Kills . | . . . . . . . . . . . . Hacking | -11 -10 -9 -8 -7 -7 -7 -7 -6 -6 -6 -6 --------- Run | Yrd Mat Mat Mat Fac Was Fac DSF Fac Was Fac DSF Machines Accessed 4 | . . 1 . 1 . 1 . . . 1 . Terminals 2 | . . . . . . 1 . . . 1 . Fabricators . | . . . . . . . . . . . . Repair Stations . | . . . . . . . . . . . . Recycling Units . | . . . . . . . . . . . . Scanalyzers 1 | . . 1 . . . . . . . . . Garrison Access 1 | . . . . 1 . . . . . . . Total Hacks 11 | . . 5 . 3 . 1 . . . 2 . Successful 5 | . . 3 . . . 1 . . . 1 . Failed 5 | . . 1 . 3 . . . . . 1 . Catastrophic 1 | . . . . . . . . . . 1 . Database Lockouts 1 | . . 1 . . . . . . . . . Manual . | . . . . . . . . . . . . Terminals 3 | . . . . . . 1 . . . 2 . Fabricators . | . . . . . . . . . . . . Repair Stations . | . . . . . . . . . . . . Recycling Units . | . . . . . . . . . . . . Scanalyzers 5 | . . 5 . . . . . . . . . Garrison Access 3 | . . . . 3 . . . . . . . Terminal Hacks 2 | . . . . . . 1 . . . 1 . Open DSF 2 | . . . . . . 1 . . . 1 . Fabricator Hacks . | . . . . . . . . . . . . Repair Station Hacks . | . . . . . . . . . . . . Recycling Unit Hacks . | . . . . . . . . . . . . Scanalyzer 3 | . . 3 . . . . . . . . . Retrieve Study 3 | . . 3 . . . . . . . . . Garrison Access Hacks . | . . . . . . . . . . . . Unauthorized Hacks . | . . . . . . . . . . . . Terminals . | . . . . . . . . . . . . Fabricators . | . . . . . . . . . . . . Repair Stations . | . . . . . . . . . . . . Recycling Units . | . . . . . . . . . . . . Scanalyzers . | . . . . . . . . . . . . Garrison Access . | . . . . . . . . . . . . Data Cores Recovered . | . . . . . . . . . . . . Used . | . . . . . . . . . . . . Hacking Detections 2 | . . . . 1 . . . . . 1 . Full Trace Events 2 | . . . . 1 . . . . . 1 . Feedback Events . | . . . . . . . . . . . . Feedback Blocked . | . . . . . . . . . . . . Robot Schematics Acquired . | . . . . . . . . . . . . Robots Built . | . . . . . . . . . . . . Authchips . | . . . . . . . . . . . . Time . | . . . . . . . . . . . . Total Robot Build Rating . | . . . . . . . . . . . . Part Schematics Acquired . | . . . . . . . . . . . . Parts Built . | . . . . . . . . . . . . Authchips . | . . . . . . . . . . . . Time . | . . . . . . . . . . . . Total Part Build Rating . | . . . . . . . . . . . . Part Studies Acquired 3 | . . 3 . . . . . . . . . Parts Repaired . | . . . . . . . . . . . . Time . | . . . . . . . . . . . . Parts Recycled . | . . . . . . . . . . . . Recycled Matter . | . . . . . . . . . . . . Retrieved Matter . | . . . . . . . . . . . . Retrieved Components . | . . . . . . . . . . . . Parts Scanalyzed . | . . . . . . . . . . . . Part Schematics Acquired . | . . . . . . . . . . . . Parts Damaged . | . . . . . . . . . . . . Bothacking | -11 -10 -9 -8 -7 -7 -7 -7 -6 -6 -6 -6 ------------ Run | Yrd Mat Mat Mat Fac Was Fac DSF Fac Was Fac DSF Used RIF Installer . | . . . . . . . . . . . . Robots Hacked . | . . . . . . . . . . . . Non-combat . | . . . . . . . . . . . . Combat . | . . . . . . . . . . . . Robot Hacks Applied . | . . . . . . . . . . . . Relay Couplers Released . | . . . . . . . . . . . . Fabnet Peak Effective % . | . . . . . . . . . . . . Robots Rewired . | . . . . . . . . . . . . Allies Hacked . | . . . . . . . . . . . . Hacks Repelled . | . . . . . . . . . . . . Allies | -11 -10 -9 -8 -7 -7 -7 -7 -6 -6 -6 -6 -------- Run | Yrd Mat Mat Mat Fac Was Fac DSF Fac Was Fac DSF Total Allies 21 | . . . . . 20 . . . 1 . . Largest Group 19 | . . . . . 19 14 14 12 5 . . Highest-Rated Group 465 | . . . . . 465 392 392 326 151 . . Highest-Rated Ally 35 | . . . . . 35 35 35 35 31 . . Initial Warlord ECA Mod 9 | . . . . . . . . 9 9 9 9 Total Orders . | . . . . . . . . . . . . Ally Attacks 240 | . . . . . 101 . 40 17 82 . . Total Damage 6327 | . . . . . 3160 . 1172 505 1490 . . Kills 22 | . . . . . 10 . 8 3 1 . . Allies Corrupted . | . . . . . . . . . . . . Allies Melted . | . . . . . . . . . . . . Intel | -11 -10 -9 -8 -7 -7 -7 -7 -6 -6 -6 -6 ------- Run | Yrd Mat Mat Mat Fac Was Fac DSF Fac Was Fac DSF Active Infowar (turns) . | . . . . . . . . . . . . Robot Analysis Total . | . . . . . . . . . . . . Derelict Logs Recovered . | . . . . . . . . . . . . Drone Launches . | . . . . . . . . . . . . Drone Recoveries . | . . . . . . . . . . . . Exploration | -11 -10 -9 -8 -7 -7 -7 -7 -6 -6 -6 -6 ------------- Run | Yrd Mat Mat Mat Fac Was Fac DSF Fac Was Fac DSF Turns Passed 5349 | 73 166 685 1378 178 1528 12 256 279 257 79 458 Spaces Moved 2610 | 50 54 286 559 76 933 5 124 156 119 42 206 Core 173 | 14 . . 14 . 144 . . . . . 1 Treads 1657 | 36 54 184 195 76 461 5 124 156 119 42 205 Legs 452 | . . 102 350 . . . . . . . . Wheels . | . . . . . . . . . . . . Hover 328 | . . . . . 328 . . . . . . Flight . | . . . . . . . . . . . . Fastest Speed 50 | 50 160 105 50 160 50 160 160 160 160 160 160 Average Speed 137 | 129 160 150 135 160 116 160 160 160 160 160 164 Slowest Speed 1150 | 160 160 175 175 160 160 160 160 160 160 160 1150 Overloaded Moves . | . . . . . . . . . . . . Propulsion Burnouts . | . . . . . . . . . . . . Robots Hopped . | . . . . . . . . . . . . Potential Cave-ins . | . . . . . . . . . . . . Cave-ins Triggered . | . . . . . . . . . . . . Exploration Rate (%) 40 | 4 19 26 48 2 95 . 81 6 79 2 81 Regions Visited 11 Branch Regions . Pre-discovered Areas . | . . . . . . . . . . . . Known Exits Taken 2 | . . . . . . 1 . . . 1 . Unknown Exits Taken 4 | 1 1 1 1 . . . . . . . . Scrap Searched . | . . . . . . . . . . . . Spaces Dug . | . . . . . . . . . . . . Terrain Destroyed 66 | . . . 59 . . . . 4 3 . . Melee . | . . . . . . . . . . . . Projectile 7 | . . . . . . . . 4 3 . . AOE 58 | . . . 58 . . . . . . . . Terrain Rammed . | . . . . . . . . . . . . Walls Destroyed . | . . . . . . . . . . . . Machines Disabled . | . . . . . . . . . . . . Actions | -11 -10 -9 -8 -7 -7 -7 -7 -6 -6 -6 -6 --------- Run | Yrd Mat Mat Mat Fac Was Fac DSF Fac Was Fac DSF Total 3685 | 59 82 399 898 101 1337 9 162 167 150 53 268 Wait 508 | . . 10 102 . 337 5 29 3 7 11 4 Move 2602 | 49 53 285 558 76 932 4 123 156 118 42 206 Hop . | . . . . . . . . . . . . Pick Up 65 | 5 . 10 24 4 12 . . . 3 . 7 Fast Attach 42 | . . 7 11 . 6 . 1 . 3 . 14 Attach 62 | 5 . 4 26 6 13 . . 2 2 . 4 Detach 15 | . . . 8 1 4 . . . 1 . 1 Swap 12 | . . 2 9 . 1 . . . . . . Drop 33 | . . 3 12 . 11 . 1 . 1 . 5 Fire 310 | . 29 78 114 14 19 . 8 6 15 . 27 Melee 36 | . . . 34 . 2 . . . . . . Ram . | . . . . . . . . . . . . Kick . | . . . . . . . . . . . . Crush . | . . . . . . . . . . . . Escape Stasis . | . . . . . . . . . . . . Rewire . | . . . . . . . . . . . . Trap . | . . . . . . . . . . . . Miscellaneous . | . . . . . . . . . . . . Route ------- -11/Scrapyard -10/Materials -9/Materials -8/Materials (discovered 2 exits: *Fac x2) -7/Factory -7/Waste -7/Factory -7/DSF -6/Factory -6/Waste -6/Factory -6/DSF History --------- Turn | Location | Event 8 | -11/Scrapyard | Discovered new exit (range 16) 74 | -11/Scrapyard | Entered Materials 188 | -10/Materials | Discovered new exit (range 11) 240 | -10/Materials | Entered another Materials area 240 | -9/Materials | Evolved 2 slots: Utility x2 303 | -9/Materials | Build established: Mutant 683 | -9/Materials | Lost 4 parts (1p1n1u1w) 721 | -9/Materials | Central database locked down 911 | -9/Materials | Discovered new exit (range 9) 925 | -9/Materials | Entered another Materials area 925 | -8/Materials | Evolved 2 slots: Propulsion x1, Weapon x1 1164 | -8/Materials | Garrison activated, responded to threat 1265 | -8/Materials | Destroyed 9 combat bots 1439 | -8/Materials | Lost 4 parts (1n3u) 1521 | -8/Materials | Garrison activated, responded to threat 1636 | -8/Materials | Core integrity fell below 50% 1659 | -8/Materials | Discovered new exit (range 9) 1672 | -8/Materials | Lost 10 parts (1p3n2u4w) 2143 | -8/Materials | Destroyed 8 combat bots 2199 | -8/Materials | Core integrity fell below 20% 2295 | -8/Materials | Discovered new exit (range 5) 2303 | -8/Materials | Entered Factory 2303 | -7/Factory | Evolved 2 slots: Power x1, Weapon x1 2444 | -7/Factory | Garrison activated, responded to threat 2481 | -7/Factory | Manually triggered Chute Trap 2481 | -7/Factory | Sucked down chute 2481 | -7/Factory | Entered Waste 2482 | -7/Waste | Met a frightened Derelict 2603 | -7/Waste | Destroyed C-40 Crusher 2635 | -7/Waste | Build established: Scavenger-Gunner 2778 | -7/Waste | Crushed by Compactor (1 part destroyed, 1 dropped) 2781 | -7/Waste | Crushed by Compactor (1 part destroyed, 2 dropped) 2784 | -7/Waste | Crushed by Compactor (1 part destroyed, 2 dropped) 2787 | -7/Waste | Spotted C-40 Crusher 2814 | -7/Waste | Crushed by Compactor (1 part destroyed, 2 dropped) 2817 | -7/Waste | Crushed by Compactor (1 part destroyed, 2 dropped) 2848 | -7/Waste | Lost 5 parts (1n1u3w) 2852 | -7/Waste | Spotted C-40 Crusher 2865 | -7/Waste | Crushed by Compactor (1 part destroyed) 2867 | -7/Waste | Spotted C-40 Crusher 2887 | -7/Waste | Spotted C-40 Crusher 2893 | -7/Waste | Warlord forces began an assault 2904 | -7/Waste | Allies destroyed C-40 Crusher 2913 | -7/Waste | Allies destroyed C-40 Crusher 2917 | -7/Waste | Allies destroyed C-40 Crusher 2917 | -7/Waste | Allies destroyed C-40 Crusher 2944 | -7/Waste | Lost 5 allies 2996 | -7/Waste | Discovered new exit (range 16) 3081 | -7/Waste | Build established: Mutant 3455 | -7/Waste | Build established: Derelict-Tank 4009 | -7/Waste | Entered Factory 4009 | -7/Factory | Accompanied by 14 allies 4016 | -7/Factory | Identified exit to DSF 4021 | -7/Factory | Entered DSF 4021 | -7/DSF | Accompanied by 14 allies 4056 | -7/DSF | Additional patrols routed to DSF 4095 | -7/DSF | Build established: Scavenger-Tank 4206 | -7/DSF | Sterilization system engaged 4212 | -7/DSF | Discovered new exit (range 14) 4226 | -7/DSF | Ambient heat levels rising (+10) 4241 | -7/DSF | Ambient heat levels rising (+10) 4256 | -7/DSF | Ambient heat levels rising (+10) 4271 | -7/DSF | Ambient heat levels rising (+10) 4277 | -7/DSF | Entered Factory 4277 | -6/Factory | Accompanied by 12 allies 4277 | -6/Factory | Evolved 2 slots: Weapon x2 4337 | -6/Factory | Lost 3 allies 4524 | -6/Factory | Spotted B-75 Beast 4538 | -6/Factory | Destroyed B-75 Beast 4556 | -6/Factory | Manually triggered Chute Trap 4556 | -6/Factory | Sucked down chute 4556 | -6/Factory | Entered Waste 4557 | -6/Waste | Met a frightened Derelict 4571 | -6/Waste | EMP discharged 4575 | -6/Waste | Build established: Derelict-Executioner 4587 | -6/Waste | Spotted C-40 Crusher 4604 | -6/Waste | Crushed by Compactor (1 part destroyed, 2 dropped) 4623 | -6/Waste | Crushed by Compactor (1 part destroyed) 4626 | -6/Waste | Crushed by Compactor (1 part destroyed, 2 dropped) 4628 | -6/Waste | Destroyed C-40 Crusher 4657 | -6/Waste | Lost 3 parts (3w) 4666 | -6/Waste | Spotted C-40 Crusher 4671 | -6/Waste | EMP discharged 4671 | -6/Waste | System corruption reached 10% 4678 | -6/Waste | Spotted C-40 Crusher 4684 | -6/Waste | Spotted C-40 Crusher 4686 | -6/Waste | Allies destroyed C-40 Crusher 4714 | -6/Waste | Destroyed C-40 Crusher 4718 | -6/Waste | Crushed by Compactor (1 part destroyed, 2 dropped) 4722 | -6/Waste | Spotted C-40 Crusher 4741 | -6/Waste | 9 allies followed down the chute 4758 | -6/Waste | Lost 7 allies 4768 | -6/Waste | Spotted C-40 Crusher 4771 | -6/Waste | EMP discharged 4774 | -6/Waste | Crushed by Compactor (0 parts destroyed, 1 dropped) 4775 | -6/Waste | Crushed by Compactor (0 parts destroyed, 1 dropped) 4777 | -6/Waste | Crushed by Compactor (1 part destroyed) 4797 | -6/Waste | Discovered new exit (range 10) 4813 | -6/Waste | Entered Factory 4892 | -6/Factory | Identified exit to DSF 4892 | -6/Factory | Entered DSF 4934 | -6/DSF | Build established: Scavenger-Mutant 4937 | -6/DSF | Additional patrols routed to DSF 5164 | -6/DSF | Lost 6 parts (1n3u2w) 5166 | -6/DSF | Sterilization system engaged 5186 | -6/DSF | Ambient heat levels rising (+10) 5201 | -6/DSF | Ambient heat levels rising (+10) 5216 | -6/DSF | Ambient heat levels rising (+10) 5231 | -6/DSF | Ambient heat levels rising (+10) 5246 | -6/DSF | Ambient heat levels rising (+10) 5261 | -6/DSF | Ambient heat levels rising (+10) 5276 | -6/DSF | Ambient heat levels rising (+10) 5291 | -6/DSF | Ambient heat levels rising (+10) 5299 | -6/DSF | Core integrity fell below 50% 5306 | -6/DSF | Ambient heat levels rising (+10) 5321 | -6/DSF | Ambient heat levels rising (+10) 5336 | -6/DSF | Ambient heat levels rising (+10) 5345 | -6/DSF | Core integrity fell below 20% 5351 | -6/DSF | Core melted Last Messages --------------- ALERT: Ambient heat levels +10. Overheating: Disruptor Cannon damaged (-14). Overheating: Broken Disruptor Cannon damaged (-8). Overheating: Adv. Heat Sink damaged (-20). Overheating: Disruptor Cannon damaged (-10). Disruptor Cannon broken. Overheating: Short circuit. Triggered Alarm Trap. An alarm sounds. Overheating: Energy bleed (-30). System corrupted: Matter fused (-10). Overheating: Energy bleed (-47). Overheating: Core damaged (-144). Hvy. Treads broken. Overheating: Short circuit. Overheating: Adv. Heat Sink damaged (-10). Disruptor Cannon broken. Overheating: Short circuit. Overheating: Core damaged (-110). Map ----- +----------------------------------------------------+ | | | | | | | | | | | | | | | | | | | | | | | | | | | | | | | | | ???????????????????????????????????????????? | | ???????????????????????????????????????????? | | ???????????????????????????????????????????? | | ???????????????????????????????????????????? | | ???????????????????????????????????????????? | | ???????????????????????????????????????????? | | ??????????????#########????????????????????? | | ??????????????# !!########???""????????? | | ??????????????# !!#!!!# ##"""""#??????? | | ??????????????# @ ""#??????? | | ??????????????# """??????? | | ??????????????### ###!!!#!!## ""#??????? | | ??????????????### ###!!!#!!#??? ###??????? | | ??????????????#!! ########?????????????? | | ??????????????#!! #????????????????????? | | ??????????????#!! #????????? ?????????? | | ??????????????### ###????????? #????????? | | ??????????????# !!#????????? !????????? | | ??????????????# !!#????????? !????????? | | ??????????????# !!#????????? !????????? | | #################! #######????# ###??????? | | # ##***#!!!### ! ###!!!#?? ## #??????? | | # ##***#!!!##]] %## !!# ## !!#??????? | | # == ^^ !!#??????? | | # =% ^ !!#??????? | | # % = = % !!#??????? | | #== ##!!!#! ## * ##!!!#!!!## #??????? | | #== ##!!!#!!!### !*###!!!#!!!## #??????? | | ### ############ #######?#### ###??????? | | ?? ????????#!! ! !#??????#// #???????? | | ?# ????????#!! " !#??????#// #???????? | | ?# ????????#!! *!!#??????#// #???????? | | ?## ##???????##" ###??????### ##???????? | | ?? !????????# #??????#] [#???????? | +----------------------------------------------------+ Best States ------------- Heat Dissipation 73 Energy Generation 34 Energy Capacity 535 Matter Stores 300 Matter Capacity 300 Sight Range 16 Terrain Scan Density 10 Armor Coverage 600 Resistance: KI 20 Propulsion Shielding 66 Weapon Shielding 66 Evasion (%) 55 Targeting Accuracy 16 Target Analysis 5 Recoil Reduction 9 Kinecelleration 40 Item Schematics ----------------- None Robot Schematics ------------------ None Fabricated ------------ Nothing Repaired ---------- Nothing Studied --------- Aluminum Leg | -9/Materials | Hacked Lgt. Assault Rifle | -9/Materials | Hacked Rocket Launcher | -9/Materials | Hacked Alien Tech Used ----------------- None Achievements -------------- None Challenges ------------ None Game ------ Seed MetaFluxClaymores Manual? 0 Play Time 00:32:28 Cumulative 363.4 hours Start 2026.07.04 @ 18:33:52 End 2026.07.04 @ 19:07:08 Sessions 1 Manual Loads 0 Difficulty Rogue Special Mode None Game No. 897 Rogue 895 Adventurer 2 Explorer 0 Win Type - Total 1 Types 1/0/0/0/0/0/0/0/0/0 Lore% 51 Gallery% 67 Achievement% 53 Wizard Run 0 Options --------- Layout 2 ASCII 0 Keyboard 0 Movement Mouse Keybinds 0 Fullscreen 1 Font 24/Smallcaps Map View 50x44 Zoom Use 0% Tactical HUD 0 Map Filters NONE Filters NONE Steam 1 RUN: 5fb3e938-40ae-4848-b6cc-fc463ef43b7a